Organisation Name,Organisation Code,Directorate/Service,Service Category Label,Service Code,Supplier Name,Supplier Reference,Payment Date,Transaction Number,Net Payments,Purpose of Spend,,
North West Leicestershire District Council,31UH,Chief Exec,Chief Executive,CHEX,Local Government Association,A002189,29/04/2021,1410055,9466.99,Subscriptions,,
North West Leicestershire District Council,31UH,Information Technology,ICT Services,ICT,NB Data Ltd,A033802,05/05/2021,1409776,339.6,Operational Equipment,,
North West Leicestershire District Council,31UH,Planning & Development,Environment - Town Centre/CCTV,ECCTV,Aquila Training Services Limited,A037151,05/05/2021,1409939,285,Training Expenses,,
North West Leicestershire District Council,31UH,Planning & Development,Environment Community Planning,ECP,Infrastruct CS Ltd,A046818,05/05/2021,1409946,1950,Community Focus project,,
North West Leicestershire District Council,31UH,Housing,HRA Performance & Business Support,HRAPBS,Baily Garner (Health & Safety) Ltd,A046836,05/05/2021,1409950,2150.4,Legal & Professional Services,,
North West Leicestershire District Council,31UH,Planning & Development,Environment - Town Centre/CCTV,ECCTV,Proudcastle,A040322,05/05/2021,1409951,895,Cctv Control Room Expense,,
North West Leicestershire District Council,31UH,Finance,Financial Planning,FINPLA,Michael Page International Recruitment Ltd,A041893,05/05/2021,1409975,2100,Agency Staff,,
North West Leicestershire District Council,31UH,Street Management,Environment Transport,ENOT,Bucher Municipal Limited,A039355,05/05/2021,1409985,3872.68,Non Scheduled Maintenance - Parts,,
North West Leicestershire District Council,31UH,Street Management,Environment Transport,ENOT,Ford Motor Company T/A Parts Plus,A045765,05/05/2021,1410003,588.84,Non Scheduled Maintenance - Parts,,
North West Leicestershire District Council,31UH,Street Management,Environment Transport,ENOT,PB Auto Electrics,A041120,05/05/2021,1410005,254.1,Non Scheduled Maintenance - Parts,,
North West Leicestershire District Council,31UH,Street Management,Environment Transport,ENOT,Watling JCB Ltd,A032114,05/05/2021,1410014,265,Scheduled Servicing - Parts,,
North West Leicestershire District Council,31UH,Chief Exec,Chief Executive,CHEX,Pollards Fruit & Veg,A045637,05/05/2021,1410015,400,Food Deliveries,,
North West Leicestershire District Council,31UH,Chief Exec,Chief Executive,CHEX,Edwards & Edwards Consultancy Ltd,A041694,05/05/2021,1410016,548,Consultants Fees,,
North West Leicestershire District Council,31UH,Street Management,Environment Transport,ENOT,Parkers The Parts People,A044935,05/05/2021,1410027,552,Vehicle Parts,,
North West Leicestershire District Council,31UH,Street Management,Environment Transport,ENOT,Parkers The Parts People,A044935,05/05/2021,1410033,439.11,Repairs - Parts,,
North West Leicestershire District Council,31UH,Street Management,Environment - Street Scene,ESS,Midlands Co-operative  Ltd,A036454,05/05/2021,1409947,500,Welfare Funerals,,
North West Leicestershire District Council,31UH,Housing,HRA Housing Management,HRAHM,Alliance Contracting Solutions Ltd,A043325,05/05/2021,1409970,97508.1,Legal & Professional Services,,
North West Leicestershire District Council,31UH,Street Management,Environment Transport,ENOT,Mobile Hydraulics Ltd,A001131,05/05/2021,1409989,279.13,Repairs - Parts,,
North West Leicestershire District Council,31UH,Street Management,Environment Transport,ENOT,Mobile Hydraulics Ltd,A001131,05/05/2021,1409990,485.45,Repairs - Parts,,
North West Leicestershire District Council,31UH,Street Management,Environment Transport,ENOT,Mobile Hydraulics Ltd,A001131,05/05/2021,1409991,824.31,Repairs - Parts,,
North West Leicestershire District Council,31UH,Street Management,Environment Transport,ENOT,Mobile Hydraulics Ltd,A001131,05/05/2021,1409992,397.03,Repairs - Parts,,
North West Leicestershire District Council,31UH,Street Management,Environment Transport,ENOT,Mobile Hydraulics Ltd,A001131,05/05/2021,1409993,298.25,Repairs - Parts,,
North West Leicestershire District Council,31UH,Street Management,Environment Transport,ENOT,Mobile Hydraulics Ltd,A001131,05/05/2021,1409995,516.49,Repairs - Parts,,
North West Leicestershire District Council,31UH,Street Management,Environment Transport,ENOT,Mobile Hydraulics Ltd,A001131,05/05/2021,1409996,473.09,Repairs - Parts,,
North West Leicestershire District Council,31UH,Street Management,Environment Transport,ENOT,Mobile Hydraulics Ltd,A001131,05/05/2021,1409999,559.9,Repairs - Parts,,
North West Leicestershire District Council,31UH,Street Management,Environment Transport,ENOT,Mobile Hydraulics Ltd,A001131,05/05/2021,1410001,321.92,Repairs - Parts,,
North West Leicestershire District Council,31UH,Street Management,Environment Transport,ENOT,J F Lloyd & Sons,A000991,05/05/2021,1407946,330,Hire Of Operational Equipment,,
North West Leicestershire District Council,31UH,Planning & Development,Environment - Town Centre/CCTV,ECCTV,Broadland Guarding Services Ltd,A042635,05/05/2021,1409280,4282.74,Service Contracts,,
North West Leicestershire District Council,31UH,Street Management,Environment Transport,ENOT,Danline International Ltd,A029265,05/05/2021,1409805,570,Hire Of Operational Equipment,,
North West Leicestershire District Council,31UH,Street Management,Environment Parks,ENOP,R Pochin Limited,A001313,05/05/2021,1410058,503,Operational Purchases,,
North West Leicestershire District Council,31UH,Information Technology,ICT Services,ICT,Nominet UK,A046776,05/05/2021,1410064,765.94,Admin Equipment - Maintenance,,
North West Leicestershire District Council,31UH,Planning & Development,Environment - Town Centre/CCTV,ECCTV,Proudcastle,A040322,05/05/2021,1410065,450,Community Safety Project,,
North West Leicestershire District Council,31UH,Planning & Development,Environment - Town Centre/CCTV,ECCTV,Proudcastle,A040322,05/05/2021,1410066,2450,Cctv Control Room Expense,,
North West Leicestershire District Council,31UH,Street Management,Environment Transport,ENOT,Ford & Slater Group Ltd,A000625,05/05/2021,1410067,591.08,Vehicle Parts,,
North West Leicestershire District Council,31UH,Street Management,Environment - Street Scene,ESS,Chameleon Pro Audio T/A Lux Technical Ltd,A027592,05/05/2021,1410068,364,Contract Payments (Other) Ext,,
North West Leicestershire District Council,31UH,Street Management,Environment - Street Scene,ESS,DarntonB3 Limited,A045505,05/05/2021,1410070,1500,Advertising,,
North West Leicestershire District Council,31UH,Economic Development,Business Focus Group,BFG,Perfect Circle JV Ltd,A046694,05/05/2021,1410075,18349,PRE - Public Realm Masterplan,,
North West Leicestershire District Council,31UH,Information Technology,ICT Services,ICT,ACS Systems (UK) Ltd T/a ACS Office Solutions,A043447,05/05/2021,1410081,316,Direct Debit Promotions,,
North West Leicestershire District Council,31UH,Property Services,Property Commercial Lettings,PROPCL,TECSERV UK LIMITED,A028261,05/05/2021,1410106,397.5,General Repairs,,
North West Leicestershire District Council,31UH,Economic Development,Business Focus Group,BFG,Tetra Tech Limited,A046837,05/05/2021,1410145,2927,Consultants Fees,,
North West Leicestershire District Council,31UH,Economic Development,Business Focus Group,BFG,Tetra Tech Limited,A046837,05/05/2021,1410146,2606.08,Consultants Fees,,
North West Leicestershire District Council,31UH,Property Services,Property Facilities Management,PROPFM,Syston Rolling Shutters Ltd t/a Syston Doors,A001624,05/05/2021,1409912,400,General Repairs,,
North West Leicestershire District Council,31UH,Housing Repairs,HRA Housing Repairs & Maintenance,HRAHRM,Michael Dyson Associates Ltd,A028431,05/05/2021,1410078,756,Legal & Professional Services,,
North West Leicestershire District Council,31UH,Housing Repairs,HRA Housing Repairs & Maintenance,HRAHRM,Michael Dyson Associates Ltd,A028431,05/05/2021,1410079,483,Legal & Professional Services,,
North West Leicestershire District Council,31UH,Street Management,Environment Transport,ENOT,Riverside Truck Rental Ltd,A045702,05/05/2021,1410100,2585,Hire Of Transport,,
North West Leicestershire District Council,31UH,Street Management,Environment Transport,ENOT,Riverside Truck Rental Ltd,A045702,05/05/2021,1410101,550,Hire Of Transport,,
North West Leicestershire District Council,31UH,Street Management,Environment Transport,ENOT,Riverside Truck Rental Ltd,A045702,05/05/2021,1410102,1611,Hire Of Transport,,
North West Leicestershire District Council,31UH,Economic Development,Business Focus Group,BFG,Arch Communications (UK) Ltd,A046458,05/05/2021,1410151,660,Consultants Fees,,
North West Leicestershire District Council,31UH,Housing Repairs,HRA Housing Repairs & Maintenance,HRAHRM,Travis Perkins Trading Co Ltd,A001693,05/05/2021,1410157,134233.09,General Materials,,
North West Leicestershire District Council,31UH,Housing Repairs,HRA Housing Repairs & Maintenance,HRAHRM,Travis Perkins Trading Co Ltd,A001693,05/05/2021,1410158,1475,General Materials,,
North West Leicestershire District Council,31UH,Housing Repairs,HRA Housing Repairs & Maintenance,HRAHRM,Travis Perkins Trading Co Ltd,A001693,05/05/2021,1410159,7131.63,General Materials,,
North West Leicestershire District Council,31UH,Finance,Financial Planning,FINPLA,Macildowie Associates Ltd,A046022,05/05/2021,1410205,1565.67,Agency Staff,,
North West Leicestershire District Council,31UH,Property Services,Property Facilities Management,PROPFM,T Denman & Sons Ltd,A030887,05/05/2021,1402534,1590,General Repairs,,
North West Leicestershire District Council,31UH,Information Technology,ICT Services,ICT,Catalogic Software Ltd,A039733,05/05/2021,1409217,2646,Corporate IT Licences,,
North West Leicestershire District Council,31UH,Information Technology,ICT Services,ICT,Idox Software Ltd,A034157,05/05/2021,1410063,1900,Operational Equipment,,
North West Leicestershire District Council,31UH,Information Technology,ICT Services,ICT,Idox Software Ltd,A034157,05/05/2021,1410080,4425,Software Licences,,
North West Leicestershire District Council,31UH,Information Technology,ICT Services,ICT,Cable & Wireless Worldwide,A038473,05/05/2021,1410085,2963.02,Admin Equipment - Maintenance,,
North West Leicestershire District Council,31UH,Information Technology,ICT Services,ICT,Catalogic Software Ltd,A039733,05/05/2021,1410104,1068.75,Admin Equipment - Hire/Rental,,
North West Leicestershire District Council,31UH,Street Management,Environment - Street Scene,ESS,Bruel & Kjaer Uk Limited,A000253,05/05/2021,1410203,1405.76,Operational Equipment,,
North West Leicestershire District Council,31UH,Communications,Corporate - Communications,CP,Reflec Signs & Graphics Ltd,A025348,12/05/2021,1409762,280,Other Printing,,
North West Leicestershire District Council,31UH,Street Management,Environment Waste Management,ENOWM,Imperial Polythene,A045739,12/05/2021,1409933,2408.64,General Materials,,
North West Leicestershire District Council,31UH,Street Management,Environment - Street Scene,ESS,Logic Fire and Security Ltd,A044439,12/05/2021,1410097,478.8,Health & Safety Repairs/Maintenance,,
North West Leicestershire District Council,31UH,Environmental Health,Environmental Health & Licensing,EEHL,Eville And Jones Limited,A033670,12/05/2021,1410150,3117,Vet Inspection,,
North West Leicestershire District Council,31UH,Street Management,Environment Transport,ENOT,Terberg Matec UK Limited,A001647,12/05/2021,1410208,463.18,Repairs - Parts,,
North West Leicestershire District Council,31UH,Street Management,Environment Waste Management,ENOWM,One51 ES Plastics(UK) Ltd  t/a MGB Plastics,A044595,12/05/2021,1410213,10020,General Materials,,
North West Leicestershire District Council,31UH,Street Management,Environment - Street Scene,ESS,Regarde Security Ltd,A013049,12/05/2021,1410215,588.8,Contract Payments (Other) Ext,,
North West Leicestershire District Council,31UH,Information Technology,ICT Services,ICT,ACS Systems (UK) Ltd T/a ACS Office Solutions,A043447,12/05/2021,1410219,1247,Office Expenses,,
North West Leicestershire District Council,31UH,Street Management,Environment Parks,ENOP,Landscape Supply Company,A041669,12/05/2021,1410220,453.3,Operational Purchases,,
North West Leicestershire District Council,31UH,Street Management,Environment Transport,ENOT,J F Lloyd & Sons,A000991,12/05/2021,1410224,440,Hire Of Operational Equipment,,
North West Leicestershire District Council,31UH,Property Services,Property Facilities Management,PROPFM,exi,A045557,12/05/2021,1410226,1250,Consultants Fees,,
North West Leicestershire District Council,31UH,Street Management,Environment - Street Scene,ESS,SOCOTEC UK Ltd,A046112,12/05/2021,1410232,1386,Air Quality Strategy,,
North West Leicestershire District Council,31UH,Information Technology,ICT Services,ICT,Multidata (Europe) Ltd,A032931,12/05/2021,1410277,1716,Admin Equipment - Maintenance,,
North West Leicestershire District Council,31UH,Street Management,Environment Parks,ENOP,The Blast Shop,A043846,12/05/2021,1410290,278,Operational Purchases,,
North West Leicestershire District Council,31UH,Street Management,Environment Parks,ENOP,Keep Britain Tidy,A025681,12/05/2021,1410294,329,Operational Purchases,,
North West Leicestershire District Council,31UH,Street Management,Environment Parks,ENOP,Keep Britain Tidy,A025681,12/05/2021,1410295,329,Operational Purchases,,
North West Leicestershire District Council,31UH,Street Management,Environment - Street Scene,ESS,Phonographic Performances Ltd,A001300,12/05/2021,1410301,495.31,Royalties,,
North West Leicestershire District Council,31UH,Finance,Revenues,REVS,Inform CPI Ltd,A041024,12/05/2021,1410327,5000,Computing,,
North West Leicestershire District Council,31UH,Street Management,Environment Transport,ENOT,Westbury Industrial Supplies Limited,A009933,12/05/2021,1410328,1820.04,Protective Clothing,,
North West Leicestershire District Council,31UH,Street Management,Environment Parks,ENOP,Bell Decorating Group Limited,A044051,12/05/2021,1409956,2644,General Repairs,,
North West Leicestershire District Council,31UH,Street Management,Environment Parks,ENOP,Taylors Buildbase,A035303,12/05/2021,1410148,289.63,Operational Purchases,,
North West Leicestershire District Council,31UH,Street Management,Environment Parks,ENOP,Timber-Link Fencing Ltd,A033297,12/05/2021,1410267,760,External Contractor Payments,,
North West Leicestershire District Council,31UH,Information Technology,ICT Services,ICT,ACS Systems (UK) Ltd T/a ACS Office Solutions,A043447,12/05/2021,1410299,1068,Admin Equipment - Hire/Rental,,
North West Leicestershire District Council,31UH,Street Management,Environment Parks,ENOP,Regarde Security Ltd,A013049,12/05/2021,1410329,4900,Building Security,,
North West Leicestershire District Council,31UH,Street Management,Environment Parks,ENOP,Regarde Security Ltd,A013049,12/05/2021,1410330,1030.4,Security Services,,
North West Leicestershire District Council,31UH,Finance,Financial Planning,FINPLA,Michael Page International Recruitment Ltd,A041893,12/05/2021,1410401,2100,Agency Staff,,
North West Leicestershire District Council,31UH,Finance,Financial Planning,FINPLA,Mazars LLP,A045078,12/05/2021,1410402,9725,Audit Commision Fees,,
North West Leicestershire District Council,31UH,Street Management,Environment Transport,ENOT,Mobile Hydraulics Ltd,A001131,12/05/2021,1410418,585.74,Repairs - Parts,,
North West Leicestershire District Council,31UH,Street Management,Environment Transport,ENOT,Midland Hydraulic Services Limited,A001106,12/05/2021,1410419,1385,Repairs - Parts,,
North West Leicestershire District Council,31UH,Street Management,Environment Transport,ENOT,Malvern Tyres,A035175,12/05/2021,1410421,305.08,Transport Costs - Tyres,,
North West Leicestershire District Council,31UH,Street Management,Environment Transport,ENOT,Enterprise Flex-E-Rent,A046516,12/05/2021,1410423,3574,Hire Of Transport,,
North West Leicestershire District Council,31UH,Street Management,Environment Transport,ENOT,Lee Wells Autobodies Ltd,A031849,12/05/2021,1410431,350,Non Scheduled Maintenance - Parts,,
North West Leicestershire District Council,31UH,Street Management,Environment Transport,ENOT,Watling JCB Ltd,A032114,12/05/2021,1410432,1153.63,Non Scheduled Maintenance - Parts,,
North West Leicestershire District Council,31UH,Street Management,Environment Transport,ENOT,Trade Price Windscreens Ltd,A040486,12/05/2021,1410434,330,Non Scheduled Maintenance - Parts,,
North West Leicestershire District Council,31UH,Street Management,Environment Transport,ENOT,Tough Technology Products Ltd,A034290,12/05/2021,1410435,320.44,Consumable Materials,,
North West Leicestershire District Council,31UH,Street Management,Environment Transport,ENOT,Taylor Engineering & Fabrications Ltd,A036178,12/05/2021,1410436,775.15,Repairs - Parts,,
North West Leicestershire District Council,31UH,Street Management,Environment Transport,ENOT,Enterprise Flex-E-Rent,A046516,12/05/2021,1410463,4436.92,Hire Of Transport,,
North West Leicestershire District Council,31UH,Street Management,Environment Transport,ENOT,Enterprise Flex-E-Rent,A046516,12/05/2021,1410464,4978.71,Hire Of Transport,,
North West Leicestershire District Council,31UH,Street Management,Environment Transport,ENOT,Certas Energy Uk Ltd,A043448,12/05/2021,1409948,17718.55,Fuel,,
North West Leicestershire District Council,31UH,Street Management,Environment Waste Management,ENOWM,Leicestershire County Council,A027423,12/05/2021,1409954,50637.02,Trade Refuse Disposal Costs,,
North West Leicestershire District Council,31UH,Property Services,Property Commercial Lettings,PROPCL,Secom Plc,A003044,12/05/2021,1410060,2089.15,Alt & Mtce-Fixed Plant,,
North West Leicestershire District Council,31UH,Street Management,Environment Transport,ENOT,Certas Energy Uk Ltd,A043448,12/05/2021,1410156,513.7,Fuel,,
North West Leicestershire District Council,31UH,Corporate Director,Human Resources,HR,Wider Plan Ltd,A043948,12/05/2021,1410209,1249,Staff Benefit Scheme,,
North West Leicestershire District Council,31UH,Planning & Development,Environment - Development Control,EDC,Haymarket Media Group,A035826,12/05/2021,1410229,3530,Subscriptions,,
North West Leicestershire District Council,31UH,Property Services,Property Facilities Management,PROPFM,TECSERV UK LIMITED,A028261,12/05/2021,1410230,452,General Repairs,,
North West Leicestershire District Council,31UH,Property Services,Property Facilities Management,PROPFM,TECSERV UK LIMITED,A028261,12/05/2021,1410231,347,General Repairs,,
North West Leicestershire District Council,31UH,Finance,Financial Planning,FINPLA,Macildowie Associates Ltd,A046022,12/05/2021,1410236,2190.5,Agency Staff,,
North West Leicestershire District Council,31UH,Property Services,Property Facilities Management,PROPFM,Regarde Security Ltd,A013049,12/05/2021,1410283,588.8,Building Security,,
North West Leicestershire District Council,31UH,Property Services,Property Facilities Management,PROPFM,Regarde Security Ltd,A013049,12/05/2021,1410284,294.4,Security Services,,
North West Leicestershire District Council,31UH,Chief Exec,Chief Executive,CHEX,Amion Consulting Ltd,A046790,12/05/2021,1410293,2500,PRE - District Signs,,
North West Leicestershire District Council,31UH,Street Management,Environment - Street Scene,ESS,RAS Town Planning Services,A045293,12/05/2021,1410307,3120,Consultants Fees,,
North West Leicestershire District Council,31UH,Street Management,Environment - Street Scene,ESS,Air Quality Consultants,A031783,12/05/2021,1410308,5875,Air Quality Strategy,,
North West Leicestershire District Council,31UH,Finance,Financial Planning,FINPLA,Blaby District Council,A000180,12/05/2021,1410323,109158.5,Grants,,
North West Leicestershire District Council,31UH,Street Management,Environment Transport,ENOT,Bucher Municipal Limited,A039355,12/05/2021,1410425,385.21,Non Scheduled Maintenance - Parts,,
North West Leicestershire District Council,31UH,Street Management,Environment Transport,ENOT,Bucher Municipal Limited,A039355,12/05/2021,1410426,600.16,Non Scheduled Maintenance - Parts,,
North West Leicestershire District Council,31UH,Street Management,Environment Transport,ENOT,Anderson Commercials Limited,A033469,12/05/2021,1410427,631,Mot,,
North West Leicestershire District Council,31UH,Information Technology,ICT Services,ICT,Whitespace Work Software Ltd,A041243,12/05/2021,1408858,2850,Operational Equipment,,
North West Leicestershire District Council,31UH,Street Management,Environment Transport,ENOT,Second 2 None,A031408,12/05/2021,1410473,7920,Contract Cleaning,,
North West Leicestershire District Council,31UH,Street Management,Environment Transport,ENOT,Riverside Truck Rental Ltd,A045702,12/05/2021,1410476,5500,Hire Of Transport,,
North West Leicestershire District Council,31UH,Street Management,Environment Transport,ENOT,SB Components (International) Ltd,A045996,12/05/2021,1410477,1713,Non Insurance Damage,,
North West Leicestershire District Council,31UH,Environmental Health,Environmental Health & Licensing,EEHL,Tennals Pest Control,A045705,19/05/2021,1410460,1222.58,External Contractor Payments,,
North West Leicestershire District Council,31UH,Information Technology,ICT Services,ICT,Freedom Communications (UK) Ltd,A032826,19/05/2021,1410506,597.98,C.O. - Call Charges,,
North West Leicestershire District Council,31UH,Finance,Financial Planning,FINPLA,Macildowie Associates Ltd,A046022,19/05/2021,1410512,2046.42,Agency Staff,,
North West Leicestershire District Council,31UH,Leisure & Culture,Sport & Physical Activity,SPA,Lambert Smith Hampton,A020974,19/05/2021,1410515,280.75,Service Charges,,
North West Leicestershire District Council,31UH,Information Technology,ICT Services,ICT,Cuttlefish Multimedia Ltd,A032102,19/05/2021,1410517,1718.33,Website Maintenance,,
North West Leicestershire District Council,31UH,Corporate Director,Human Resources,HR,Wider Plan Ltd,A043948,19/05/2021,1410521,350,Medical Fees,,
North West Leicestershire District Council,31UH,Corporate Director,Human Resources,HR,TMP Worldwide Ltd,A045319,19/05/2021,1410522,1685,Employee Advertising,,
North West Leicestershire District Council,31UH,Corporate Director,Human Resources,HR,TMP Worldwide Ltd,A045319,19/05/2021,1410523,980,Employee Advertising,,
North West Leicestershire District Council,31UH,Property Services,Property Facilities Management,PROPFM,Newton Newton Flags & Banners,A035170,19/05/2021,1410524,526.35,Operational Equipment,,
North West Leicestershire District Council,31UH,Finance,Financial Planning,FINPLA,Macildowie Associates Ltd,A046022,19/05/2021,1410525,1295.78,Agency Staff,,
North West Leicestershire District Council,31UH,Finance,Financial Planning,FINPLA,Macildowie Associates Ltd,A046022,19/05/2021,1410526,1811.09,Agency Staff,,
North West Leicestershire District Council,31UH,Finance,Financial Planning,FINPLA,Macildowie Associates Ltd,A046022,19/05/2021,1410527,1328.88,Agency Staff,,
North West Leicestershire District Council,31UH,Street Management,Environment Waste Management,ENOWM,ESE World Limited,A001253,19/05/2021,1410548,708,General Materials,,
North West Leicestershire District Council,31UH,Housing Repairs,HRA Housing Repairs & Maintenance,HRAHRM,HQN Ltd,A007983,19/05/2021,1410550,250,Training Expenses,,
North West Leicestershire District Council,31UH,Street Management,Environment Waste Management,ENOWM,J F Lloyd & Sons,A000991,19/05/2021,1410555,390,Operational Equipment,,
North West Leicestershire District Council,31UH,Street Management,Environment Waste Management,ENOWM,J F Lloyd & Sons,A000991,19/05/2021,1410556,390,Hire Of Operational Equipment,,
North West Leicestershire District Council,31UH,Street Management,Environment Waste Management,ENOWM,J F Lloyd & Sons,A000991,19/05/2021,1410557,390,Hire Of Operational Equipment,,
North West Leicestershire District Council,31UH,Street Management,Environment Waste Management,ENOWM,ESE World Limited,A001253,19/05/2021,1410560,4208,General Materials,,
North West Leicestershire District Council,31UH,Planning & Development,Environment - Town Centre/CCTV,ECCTV,Proudcastle,A040322,19/05/2021,1410478,10800.78,Community Safety Project,,
North West Leicestershire District Council,31UH,Information Technology,ICT Services,ICT,Six Degrees Technology Group Ltd,A044205,19/05/2021,1410559,19586.38,Admin Equipment - Maintenance,,
North West Leicestershire District Council,31UH,Housing,HRA Performance & Business Support,HRAPBS,The Housing Ombudsman,A041384,19/05/2021,1410570,9323.02,Subscriptions,,
North West Leicestershire District Council,31UH,Corporate Director,Human Resources,HR,Wider Plan Ltd,A043948,19/05/2021,1410580,2950.5,Employee Benefit Scheme,,
North West Leicestershire District Council,31UH,Property Services,Property Facilities Management,PROPFM,Second Element Ltd,A046693,19/05/2021,1410613,783.98,Legionella testing,,
North West Leicestershire District Council,31UH,Property Services,Property Facilities Management,PROPFM,Second Element Ltd,A046693,19/05/2021,1410614,783.98,Legionella testing,,
North West Leicestershire District Council,31UH,Property Services,Property Facilities Management,PROPFM,Second Element Ltd,A046693,19/05/2021,1410615,783.98,Legionella testing,,
North West Leicestershire District Council,31UH,Housing Repairs,HRA Housing Repairs & Maintenance,HRAHRM,Arco Limited,A000068,19/05/2021,1410623,725.45,Protective Clothing,,
North West Leicestershire District Council,31UH,Housing Repairs,HRA Housing Repairs & Maintenance,HRAHRM,Arco Limited,A000068,19/05/2021,1410625,469.26,Protective Clothing,,
North West Leicestershire District Council,31UH,Corporate Director,Human Resources,HR,East Midlands Councils,A008942,19/05/2021,1407969,875,Corporate Training,,
North West Leicestershire District Council,31UH,Information Technology,ICT Services,ICT,Stone Computers Ltd,A023214,19/05/2021,1410322,299.85,Office Expenses,,
North West Leicestershire District Council,31UH,Information Technology,ICT Services,ICT,ACS Systems (UK) Ltd T/a ACS Office Solutions,A043447,19/05/2021,1410585,3223,Operational Equipment,,
North West Leicestershire District Council,31UH,Street Management,Environment Transport,ENOT,Westbury Industrial Supplies Limited,A009933,19/05/2021,1410616,1079.91,Protective Clothing,,
North West Leicestershire District Council,31UH,Street Management,Environment Transport,ENOT,Pakawaste Ltd,A032627,19/05/2021,1410629,1560,Service Contracts,,
North West Leicestershire District Council,31UH,Chief Exec,Chief Executive,CHEX,exi,A045557,19/05/2021,1410632,11133.33,Consultants Fees,,
North West Leicestershire District Council,31UH,Finance,Financial Planning,FINPLA,Creditsafe Business Solutions Ltd,A031200,19/05/2021,1410635,1935,Other Miscellaneous Expenses,,
North West Leicestershire District Council,31UH,Finance,Financial Planning,FINPLA,Michael Page International Recruitment Ltd,A041893,19/05/2021,1410641,3360,Agency Staff,,
North West Leicestershire District Council,31UH,Housing Repairs,HRA Housing Repairs & Maintenance,HRAHRM,Travis Perkins Trading Co Ltd,A001693,19/05/2021,1410709,2503.45,General Materials,,
North West Leicestershire District Council,31UH,Housing Repairs,HRA Housing Repairs & Maintenance,HRAHRM,Travis Perkins Trading Co Ltd,A001693,19/05/2021,1410710,306.02,General Materials,,
North West Leicestershire District Council,31UH,Housing Repairs,HRA Housing Repairs & Maintenance,HRAHRM,Leicestershire County Council,A027423,19/05/2021,1410712,13490.29,Fuel,,
North West Leicestershire District Council,31UH,Street Management,Environment Transport,ENOT,Riverside Truck Rental Ltd,A045702,19/05/2021,1410715,2448.3,Hire of Transport,,
North West Leicestershire District Council,31UH,Street Management,Environment Transport,ENOT,Riverside Truck Rental Ltd,A045702,19/05/2021,1410716,1540,Hire Of Transport,,
North West Leicestershire District Council,31UH,Finance,Exchequer Services,EXCH,Embridge Consulting (UK) Ltd,A046643,19/05/2021,1410725,6262,Contract Payments (Other) Ext,,
North West Leicestershire District Council,31UH,Finance,Exchequer Services,EXCH,Embridge Consulting (UK) Ltd,A046643,19/05/2021,1410726,9972,Contract Payments (Other) Ext,,
North West Leicestershire District Council,31UH,Information Technology,ICT Services,ICT,Park Place Technologies Ltd,A045525,19/05/2021,1410507,3135,Admin Equipment - Maintenance,,
North West Leicestershire District Council,31UH,Information Technology,ICT Services,ICT,Esri (Uk) Ltd,A016303,19/05/2021,1410513,16997,Corporate IT Licences,,
North West Leicestershire District Council,31UH,Information Technology,ICT Services,ICT,Dell Computer Corporation Ltd,A000470,19/05/2021,1410576,1775.34,Contract Payments (Other) Ext,,
North West Leicestershire District Council,31UH,Housing Strategy,Community - Housing Strategy,HS,The Queen Head Hotel,A002703,19/05/2021,1410711,262.77,Other Services,,
North West Leicestershire District Council,31UH,Information Technology,ICT Services,ICT,ACS Systems (UK) Ltd T/a ACS Office Solutions,A043447,19/05/2021,1410717,252,Operational Equipment,,
North West Leicestershire District Council,31UH,Street Management,Environment Transport,ENOT,Calor Gas Limited,A032686,19/05/2021,1410720,1440.77,Gas,,
North West Leicestershire District Council,31UH,Housing,HRA Housing Management,HRAHM,Readings Property Group Ltd,A045486,19/05/2021,1410721,250,Legal & Professional Services,,
North West Leicestershire District Council,31UH,Finance,Financial Planning,FINPLA,Hinckley & Bosworth Borough Council,A000770,19/05/2021,1410724,10322.67,Policy Lending,,
North West Leicestershire District Council,31UH,Property Services,Property Facilities Management,PROPFM,John Merison BMC Ltd,A001092,26/05/2021,1409763,266.58,General Repairs,,
North West Leicestershire District Council,31UH,Housing Repairs,HRA Housing Repairs & Maintenance,HRAHRM,British Gas Business,A035181,26/05/2021,1409797,574.62,Electricity,,
North West Leicestershire District Council,31UH,Property Services,Property Facilities Management,PROPFM,John Merison BMC Ltd,A001092,26/05/2021,1409814,10625.16,Asset Protection,,
North West Leicestershire District Council,31UH,Property Services,Property Facilities Management,PROPFM,John Merison BMC Ltd,A001092,26/05/2021,1409952,276.61,General Repairs,,
North West Leicestershire District Council,31UH,Housing Repairs,HRA Housing Repairs & Maintenance,HRAHRM,Screwfix Direct,A014681,26/05/2021,1409955,624.96,General Materials,,
North West Leicestershire District Council,31UH,Property Services,Property Commercial Lettings,PROPCL,John Merison BMC Ltd,A001092,26/05/2021,1410216,419.86,General Repairs,,
North West Leicestershire District Council,31UH,Property Services,Property Commercial Lettings,PROPCL,Mather Jamie,A001059,26/05/2021,1410297,3576.55,Management Company,,
North West Leicestershire District Council,31UH,Information Technology,ICT Services,ICT,Idox Software Ltd,A034157,26/05/2021,1410399,3992.4,Software Licences,,
North West Leicestershire District Council,31UH,Street Management,Environment Waste Management,ENOWM,Groundsman Tools & Supplies LLP,A030744,26/05/2021,1410569,717.5,Operational Equipment,,
North West Leicestershire District Council,31UH,Street Management,Environment Transport,ENOT,Certas Energy Uk Ltd,A043448,26/05/2021,1410740,18492.6,Fuel,,
North West Leicestershire District Council,31UH,Chief Exec,Chief Executive,CHEX,Thomas Lister Ltd,A045975,26/05/2021,1410743,4820,PRE - District Signs,,
North West Leicestershire District Council,31UH,Chief Exec,Chief Executive,CHEX,Iolite Consultants Ltd,A046234,26/05/2021,1410751,4795,Consultants Fees,,
North West Leicestershire District Council,31UH,Street Management,Environment Transport,ENOT,Integra Buildings Limited,A046025,26/05/2021,1410762,48310.8,Contract Payments (Other) Ext,,
North West Leicestershire District Council,31UH,Street Management,Environment Transport,ENOT,Certas Energy Uk Ltd,A043448,26/05/2021,1410812,541.2,Fuel,,
North West Leicestershire District Council,31UH,Planning & Development,Environment Planning Policy,EPP,The Planning Inspectorate,A030996,26/05/2021,1410834,38419.17,Consultants Fees,,
North West Leicestershire District Council,31UH,Street Management,Environment - Street Scene,ESS,Coalville Cleaning Services,A003037,26/05/2021,1410841,334.8,Contract Cleaning,,
North West Leicestershire District Council,31UH,Finance,Financial Planning,FINPLA,Blaby District Council,A000180,26/05/2021,1410852,21169.64,Contributions,,
North West Leicestershire District Council,31UH,Property Services,Property Facilities Management,PROPFM,Midland Facilities Services Ltd,A046525,26/05/2021,1410858,725,General Repairs,,
North West Leicestershire District Council,31UH,Property Services,Property Facilities Management,PROPFM,Midland Facilities Services Ltd,A046525,26/05/2021,1410859,1303.79,General Repairs,,
North West Leicestershire District Council,31UH,Housing Repairs,HRA Housing Repairs & Maintenance,HRAHRM,Leicestershire County Council,A000950,26/05/2021,1409800,2569.75,Tipping Charges,,
North West Leicestershire District Council,31UH,Property Services,Property Commercial Lettings,PROPCL,John Merison BMC Ltd,A001092,26/05/2021,1410210,2210.69,General Repairs,,
North West Leicestershire District Council,31UH,Planning & Development,Environment Community Planning,ECP,Citizens Advice Leicestershire,A043282,26/05/2021,1410398,36000,Grants,,
North West Leicestershire District Council,31UH,Property Services,Property Facilities Management,PROPFM,TECSERV UK LIMITED,A028261,26/05/2021,1410739,573,General Repairs,,
North West Leicestershire District Council,31UH,Information Technology,ICT Services,ICT,Nottingham City Council,A041558,26/05/2021,1410742,306,Training Expenses,,
North West Leicestershire District Council,31UH,Housing,HRA Housing Management,HRAHM,One Consulting,A046600,26/05/2021,1410747,2685,Consultants Fees,,
North West Leicestershire District Council,31UH,Housing,HRA Housing Management,HRAHM,One Consulting,A046600,26/05/2021,1410748,4475,Consultants Fees,,
North West Leicestershire District Council,31UH,Housing,HRA Housing Management,HRAHM,One Consulting,A046600,26/05/2021,1410749,1790,Telephone Charge / Rental,,
North West Leicestershire District Council,31UH,Information Technology,ICT Services,ICT,Premier Paper Group,A042438,26/05/2021,1410756,652.11,Consumable Materials,,
North West Leicestershire District Council,31UH,Finance,Financial Planning,FINPLA,Macildowie Associates Ltd,A046022,26/05/2021,1410768,1730.31,Agency Staff,,
North West Leicestershire District Council,31UH,Finance,Financial Planning,FINPLA,Macildowie Associates Ltd,A046022,26/05/2021,1410769,1371.51,Agency Staff,,
North West Leicestershire District Council,31UH,Street Management,Environment Transport,ENOT,Bucher Municipal Limited,A039355,26/05/2021,1410774,849.59,Non Scheduled Maintenance - Parts,,
North West Leicestershire District Council,31UH,Street Management,Environment Transport,ENOT,Aebi Schmidt Uk Limited,A017053,26/05/2021,1410775,648.53,Non Scheduled Maintenance - Parts,,
North West Leicestershire District Council,31UH,Street Management,Environment Transport,ENOT,Ford & Slater Group Ltd,A000625,26/05/2021,1410794,339,Vehicle Parts,,
North West Leicestershire District Council,31UH,Street Management,Environment Transport,ENOT,Terberg Matec UK Limited,A001647,26/05/2021,1410819,637.48,Repairs - Parts,,
North West Leicestershire District Council,31UH,Street Management,Environment Transport,ENOT,Michelin Tyre Plc,A046127,26/05/2021,1410822,273.92,Transport Costs - Tyres,,
North West Leicestershire District Council,31UH,Street Management,Environment Transport,ENOT,S & B Tyres Limited,A034071,26/05/2021,1410825,319,Transport Costs - Tyres,,
North West Leicestershire District Council,31UH,Street Management,Environment Transport,ENOT,Lee Wells Autobodies Ltd,A031849,26/05/2021,1410831,278.99,Non Insurance Damage,,
North West Leicestershire District Council,31UH,Finance,Financial Planning,FINPLA,Michael Page International Recruitment Ltd,A041893,26/05/2021,1410849,2100,Agency Staff,,
North West Leicestershire District Council,31UH,Planning & Development,Environment - Development Control,EDC,East Midlands Councils,A008942,26/05/2021,1410321,575,Training Expenses,,
North West Leicestershire District Council,31UH,Planning & Development,Environment - Development Control,EDC,East Midlands Roofing & Cladding,A046838,26/05/2021,1410752,3050,River Mease Project,,
North West Leicestershire District Council,31UH,Planning & Development,Environment - Development Control,EDC,Ilex Tree Services,A046556,26/05/2021,1410808,1286,External Legal Fees & Advice,,
North West Leicestershire District Council,31UH,Street Management,Environment Parks,ENOP,Keith Cook Training Services,A027792,26/05/2021,1410584,1132,Training Expenses,,
North West Leicestershire District Council,31UH,Legal & Democratic,Civic Expenses,LDCE,Modern Democracy Limited,A045959,26/05/2021,1410755,3910,Other Services,,
North West Leicestershire District Council,31UH,Street Management,Environment Waste Management,ENOWM,Straight Plc,A024906,26/05/2021,1410778,11340,General Materials,,
North West Leicestershire District Council,31UH,Street Management,Environment Waste Management,ENOWM,Straight Plc,A024906,26/05/2021,1410785,4200,General Materials,,
North West Leicestershire District Council,31UH,Finance,Financial Planning,FINPLA,Zurich Municipal,A033807,26/05/2021,1410995,360,Insurance related expenses,,
North West Leicestershire District Council,31UH,Corporate Director,Human Resources,HR,Health Management Ltd,A038840,26/05/2021,1410998,452.5,Medical Fees,,
North West Leicestershire District Council,31UH,Finance,Financial Planning,FINPLA,Macildowie Associates Ltd,A046022,26/05/2021,1410999,1827.21,Agency Staff,,
North West Leicestershire District Council,31UH,Leisure & Culture,Cultural Services TIC,CULTIC,Leicestershire County Council,A000950,26/05/2021,1410508,675,Premises Rents,,
North West Leicestershire District Council,31UH,Housing,HRA Housing Management,HRAHM,Aareon UK Ltd,A045197,26/05/2021,1410745,870,Contract Payments (Other) Ext,,
North West Leicestershire District Council,31UH,Corporate Director,Human Resources,HR,Redacted - Personal Data,A046842,05/05/2021,1409934,500,Grants,,
North West Leicestershire District Council,31UH,Property Services,Property Commercial Lettings,PROPCL,BES Commercial Electricity Ltd,A042405,05/05/2021,1409963,319.55,General Repairs,,
North West Leicestershire District Council,31UH,Housing,HRA Housing Management,HRAHM,PPG Architectural Coatings Ltd,A000876,05/05/2021,1409964,2197.37,Internal Decorations,,
North West Leicestershire District Council,31UH,Housing Repairs,HRA Housing Repairs & Maintenance,HRAHRM,SGS United Kingdom Limited,A044203,05/05/2021,1409965,553.18,Management services,,
North West Leicestershire District Council,31UH,Legal & Democratic,Legal Services,LDLS,Lamb Building Chambers,A045908,05/05/2021,1409968,1500,Legal & Professional Services,,
North West Leicestershire District Council,31UH,Corporate Director,Human Resources,HR,Redacted - Personal Data,A046843,05/05/2021,1409969,500,Grants,,
North West Leicestershire District Council,31UH,Corporate Director,Human Resources,HR,Carl Tring-Willis,A046840,05/05/2021,1409971,500,Grants,,
North West Leicestershire District Council,31UH,Corporate Director,Human Resources,HR,Redacted - Personal Data,A046845,05/05/2021,1410072,500,Grants,,
North West Leicestershire District Council,31UH,Corporate Director,Human Resources,HR,Redacted - Personal Data,A046844,05/05/2021,1410073,500,Grants,,
North West Leicestershire District Council,31UH,Finance,Exchequer Services,EXCH,Comensura Limited,A036958,05/05/2021,1410076,23635.49,Agency Staff,,
North West Leicestershire District Council,31UH,Finance,Exchequer Services,EXCH,Click Travel Ltd,A044308,05/05/2021,1410083,2031.85,Travel and Subsistence,,
North West Leicestershire District Council,31UH,Street Management,Environment - Street Scene,ESS,Water Plus Limited,A044043,05/05/2021,1410084,282.62,Sewerage & Environmental,,
North West Leicestershire District Council,31UH,Housing,HRA Housing Management,HRAHM,JLA Limited,A043639,05/05/2021,1410107,427.84,Cleaning & Domestic Equipment,,
North West Leicestershire District Council,31UH,Property Services,Property Commercial Lettings,PROPCL,British Telecommunications Plc,A000233,05/05/2021,1410152,541.73,Telephones,,
North West Leicestershire District Council,31UH,Finance,Revenues,REVS,Redacted - Personal Data,A000133,05/05/2021,1409978,500,Test and Trace Grants,,
North West Leicestershire District Council,31UH,Finance,Revenues,REVS,Redacted - Personal Data,A000133,05/05/2021,1409981,500,Test and Trace Grants,,
North West Leicestershire District Council,31UH,Finance,Revenues,REVS,Redacted - Personal Data,A000133,05/05/2021,1409982,500,Test and Trace Grants,,
North West Leicestershire District Council,31UH,Finance,Exchequer Services,EXCH,Total Gas & Power,A033385,05/05/2021,1409983,9952.6,Electricity,,
North West Leicestershire District Council,31UH,Finance,Exchequer Services,EXCH,Total Gas & Power,A033385,05/05/2021,1409984,19144.72,Electricity,,
North West Leicestershire District Council,31UH,Finance,Financial Planning,FINPLA,Sports and Leisure management Ltd,A000133,05/05/2021,1410050,833333.33,Contract Payments (Other) Ext,,
North West Leicestershire District Council,31UH,Finance,Financial Planning,FINPLA,Sports and Leisure management Ltd,A000133,05/05/2021,1410051,111583.6,Contract Payments (Other) Ext,,
North West Leicestershire District Council,31UH,Finance,Exchequer Services,EXCH,H M Land Registry,A000713,05/05/2021,1410053,294,Legal & Professional Services,,
North West Leicestershire District Council,31UH,Finance,Revenues,REVS,Redacted - Personal Data,A000133,05/05/2021,1410054,500,Test and Trace Grants,,
North West Leicestershire District Council,31UH,Finance,Financial Planning,FINPLA,Public Works Loan Board,A001340,05/05/2021,1410056,43125,P.W.L.B. Loans,,
North West Leicestershire District Council,31UH,Finance,Financial Planning,FINPLA,Hugglescote & Donington Le Heath,A038616,05/05/2021,1410163,1075,Parish Council Payments,,
North West Leicestershire District Council,31UH,Legal & Democratic,Electoral & Land Charges,LDELC,Blackfordby Village Hall,A000184,05/05/2021,1410204,255,Election Fees,,
North West Leicestershire District Council,31UH,Economic Development,Business Focus Group,BFG,Kegworth Plan Group,A039979,05/05/2021,1410206,499.59,Small Grant Scheme,,
North West Leicestershire District Council,31UH,Economic Development,Business Focus Group,BFG,Macit Pekacet,A046403,05/05/2021,1410207,2340.8,Coalville Shop Front Grant Scheme,,
North West Leicestershire District Council,31UH,Housing,HRA Housing Management,HRAHM,Redacted - Personal Data,A046860,12/05/2021,1410481,250,Surveillance,,
North West Leicestershire District Council,31UH,Finance,Exchequer Services,EXCH,Comensura Limited,A036958,12/05/2021,1410482,33362.39,Agency Staff,,
North West Leicestershire District Council,31UH,Finance,Exchequer Services,EXCH,Comensura Limited,A036958,12/05/2021,1410483,16658.68,Agency Staff,,
North West Leicestershire District Council,31UH,Street Management,Environment - Street Scene,ESS,Water Plus Limited,A044043,12/05/2021,1410235,458.75,Water Charges (Unmetered),,
North West Leicestershire District Council,31UH,Housing,HRA Housing Management,HRAHM,MRC Community Action,A001208,12/05/2021,1410237,2993,Homeless prevention Expenditure,,
North West Leicestershire District Council,31UH,Housing,HRA Housing Management,HRAHM,JLA Limited,A043639,12/05/2021,1410238,412,Cleaning & Domestic Equipment,,
North West Leicestershire District Council,31UH,Legal & Democratic,Legal Services,LDLS,Browne Jacobson LLP,A042988,12/05/2021,1410240,715.5,Legal & Professional Services,,
North West Leicestershire District Council,31UH,Information Technology,ICT Services,ICT,EE Ltd (Airtime),A018592,12/05/2021,1410243,4757.79,Mobile Telephones,,
North West Leicestershire District Council,31UH,Information Technology,ICT Services,ICT,EE Ltd (Airtime),A018592,12/05/2021,1410244,2549.44,Mobile Telephones,,
North West Leicestershire District Council,31UH,Legal & Democratic,Legal Services,LDLS,Cornerstone Barristers,A039753,12/05/2021,1410309,9795,Legal & Professional Services,,
North West Leicestershire District Council,31UH,Legal & Democratic,Legal Services,LDLS,Sweet & Maxwell Ltd,A001611,12/05/2021,1410310,18768,Books & Publications,,
North West Leicestershire District Council,31UH,Property Services,Property Facilities Management,PROPFM,Water Plus Limited,A044043,12/05/2021,1410311,668.61,Water Charges (Metered),,
North West Leicestershire District Council,31UH,Housing Strategy,Community - Housing Strategy,HS,Derwent Living,A046853,12/05/2021,1410333,349.72,Other Services,,
North West Leicestershire District Council,31UH,Housing Repairs,HRA Housing Repairs & Maintenance,HRAHRM,Dodd Group (Midlands) Limited,A036692,12/05/2021,1410335,5140.09,Electrical,,
North West Leicestershire District Council,31UH,Housing Repairs,HRA Housing Repairs & Maintenance,HRAHRM,Western Power Distribution,A038499,12/05/2021,1410462,848.98,Contract Payments (Dws) Ext,,
North West Leicestershire District Council,31UH,Information Technology,ICT Services,ICT,Canon UK Ltd,A040459,12/05/2021,1410469,3822.88,Equipment Operating Leases,,
North West Leicestershire District Council,31UH,Information Technology,ICT Services,ICT,Canon UK Ltd,A040459,12/05/2021,1410470,881.45,Equipment Operating Leases,,
North West Leicestershire District Council,31UH,Corporate Director,Human Resources,HR,Stormguard Floodplan Ltd,A046153,12/05/2021,1410485,4968,Grants,,
North West Leicestershire District Council,31UH,Finance,Financial Planning,FINPLA,Department for Communities & Local Government,A028518,13/05/2021,1410530,2796461,Subsidy Receipts & Repayments,,
North West Leicestershire District Council,31UH,Finance,Financial Planning,FINPLA,"Leicester, Leicestershire &",A028339,13/05/2021,1410531,238579,Precept,,
North West Leicestershire District Council,31UH,Finance,Financial Planning,FINPLA,The Office of the Police and Crime Commissioner for Leicestershire,A007096,13/05/2021,1410532,855131.8,Precept,,
North West Leicestershire District Council,31UH,Finance,Financial Planning,FINPLA,Leicestershire County Council,A000950,13/05/2021,1410533,2290309,Precept,,
North West Leicestershire District Council,31UH,Finance,Financial Planning,FINPLA,Leicestershire County Council,A000950,13/05/2021,1410534,2290309,Precept,,
North West Leicestershire District Council,31UH,Finance,Financial Planning,FINPLA,Leicestershire County Council,A000950,13/05/2021,1410535,4859265,Precept,,
North West Leicestershire District Council,31UH,Environmental Health,Environmental Health & Licensing,EEHL,The Disclosure & Barring Service,A027625,13/05/2021,1410542,320,DBS Checks,,
North West Leicestershire District Council,31UH,Finance,Revenues,REVS,Redacted - Personal Data,A000133,13/05/2021,1410544,500,Test and Trace Grants,,
North West Leicestershire District Council,31UH,Legal & Democratic,Civic Expenses,LDCE,Sweet & Maxwell Ltd,A001611,19/05/2021,1410489,288,Books & Publications,,
North West Leicestershire District Council,31UH,Housing,HRA Housing Management,HRAHM,Water Plus Limited,A044043,19/05/2021,1410491,1189.96,Water Charges (Metered),,
North West Leicestershire District Council,31UH,Housing,HRA Housing Management,HRAHM,JLA Limited,A043639,19/05/2021,1410501,282,Cleaning & Domestic Equipment,,
North West Leicestershire District Council,31UH,Finance,Exchequer Services,EXCH,Click Travel Ltd,A044308,19/05/2021,1410578,4603.68,Travel and Subsistence,,
North West Leicestershire District Council,31UH,Street Management,Environment - Street Scene,ESS,Water Plus Limited,A044043,19/05/2021,1410600,462.09,Water Charges (Metered),,
North West Leicestershire District Council,31UH,Housing,HRA Housing Management,HRAHM,JLA Limited,A043639,19/05/2021,1410601,442,Cleaning & Domestic Equipment,,
North West Leicestershire District Council,31UH,Legal & Democratic,Legal Services,LDLS,Browne Jacobson LLP,A000251,19/05/2021,1410605,592,Legal & Professional Services,,
North West Leicestershire District Council,31UH,Legal & Democratic,Legal Services,LDLS,Freeths LLP,A038047,19/05/2021,1410607,1624.5,Advertising,,
North West Leicestershire District Council,31UH,Legal & Democratic,Legal Services,LDLS,No 5 Chambers Ltd,A022238,19/05/2021,1410608,1500,Legal & Professional Services,,
North West Leicestershire District Council,31UH,Legal & Democratic,Electoral & Land Charges,LDELC,Llane Lets Play & Entertain Ltd,A045528,19/05/2021,1410611,350,Election Fees,,
North West Leicestershire District Council,31UH,Corporate Director,Human Resources,HR,Redacted - Personal Data,A046869,19/05/2021,1410619,500,Grants,,
North West Leicestershire District Council,31UH,Planning & Development,Building Control,EBC,Redacted - Personal Data,A046868,19/05/2021,1410621,256,Planning Application - Charges,,
North West Leicestershire District Council,31UH,Leisure & Culture,Sport & Physical Activity,SPA,Sands United FC Ashby,A046867,19/05/2021,1410643,285.15,Exercise Sessions,,
North West Leicestershire District Council,31UH,Finance,Exchequer Services,EXCH,Click Travel Ltd,A044308,19/05/2021,1410644,933.03,Travel and Subsistence,,
North West Leicestershire District Council,31UH,Corporate Director,Human Resources,HR,Elena Cherenkova,A046870,19/05/2021,1410645,600,Grants,,
North West Leicestershire District Council,31UH,Property Services,Property Facilities Management,PROPFM,Lift & Engineering Services,A046390,20/05/2021,1407405,4766.4,General Repairs,,
North West Leicestershire District Council,31UH,Property Services,Property Facilities Management,PROPFM,Lift & Engineering Services,A046390,20/05/2021,1407406,1648.76,General Repairs,,
North West Leicestershire District Council,31UH,Finance,Financial Planning,FINPLA,Driscoll Kingston Solicitors,A000133,20/05/2021,1410728,2200,Legal & Professional Services,,
North West Leicestershire District Council,31UH,Finance,Financial Planning,FINPLA,Driscoll Kingston Solicitors,A000133,20/05/2021,1410729,10100,Legal & Professional Services,,
North West Leicestershire District Council,31UH,Housing,HRA Housing Management,HRAHM,H M C S,A033868,20/05/2021,1410730,1421,Legal & Professional Services,,
North West Leicestershire District Council,31UH,Finance,Exchequer Services,EXCH,Severn Trent,A042250,20/05/2021,1410731,326,Conveyancing Searches,,
North West Leicestershire District Council,31UH,Finance,Exchequer Services,EXCH,Pass LTD Hand Sanitiser,A042250,20/05/2021,1410732,1440,Cleaning & Domestic Equipment,,
North West Leicestershire District Council,31UH,Finance,Exchequer Services,EXCH,DVLA Vehicle Tax,A042250,20/05/2021,1410732,9830.75,Vehicle Tax Licenses,,
North West Leicestershire District Council,31UH,Finance,Exchequer Services,EXCH,Redacted - Personal Data,A000133,20/05/2021,1410733,500,Test and Trace Grants,,
North West Leicestershire District Council,31UH,Finance,Financial Planning,FINPLA,Sports & Leisure Management Ltd,A045556,20/05/2021,1410735,833333.33,Contract Payments (Other) Ext,,
North West Leicestershire District Council,31UH,Finance,Financial Planning,FINPLA,Sports & Leisure Management Ltd,A045556,20/05/2021,1410736,326651.5,Contract Payments (Other) Ext,,
North West Leicestershire District Council,31UH,Finance,Exchequer Services,EXCH,British Telecommunications Plc,A000233,20/05/2021,1410737,4015.22,Alarm System Telephones,,
North West Leicestershire District Council,31UH,Street Management,Environment - Street Scene,ESS,Lee Cooper,A020528,26/05/2021,1410757,958,Burial Fees,,
North West Leicestershire District Council,31UH,Legal & Democratic,Civic Expenses,LDCE,SCI Print Limited,A028974,26/05/2021,1410758,1451,Election Fees,,
North West Leicestershire District Council,31UH,Legal & Democratic,Civic Expenses,LDCE,SCI Print Limited,A028974,26/05/2021,1410759,33003.8,Election Fees,,
North West Leicestershire District Council,31UH,Housing Repairs,HRA Housing Repairs & Maintenance,HRAHRM,PPG Architectural Coatings Ltd,A000876,26/05/2021,1410765,2001.03,Internal Decorations,,
North West Leicestershire District Council,31UH,Housing,HRA Housing Management,HRAHM,I-Clean,A034116,26/05/2021,1410772,1030,Contract Cleaning,,
North West Leicestershire District Council,31UH,Housing,HRA Housing Management,HRAHM,JLA Limited,A043639,26/05/2021,1410773,302,Cleaning & Domestic Equipment,,
North West Leicestershire District Council,31UH,Legal & Democratic,Legal Services,LDLS,Lawyers in Local Government,A040667,26/05/2021,1410776,530,Books & Publications,,
North West Leicestershire District Council,31UH,Finance,Exchequer Services,EXCH,Comensura Limited,A036958,26/05/2021,1410781,25283.53,Agency Staff,,
North West Leicestershire District Council,31UH,Street Management,Environment Transport,ENOT,Post Office Ltd,A046881,26/05/2021,1410853,280,Licences - Road Fund Licence,,
North West Leicestershire District Council,31UH,Housing,HRA Housing Management,HRAHM,JLA Limited,A043639,26/05/2021,1410870,282,Cleaning & Domestic Equipment,,
North West Leicestershire District Council,31UH,Environmental Health,Environmental Health & Licensing,EEHL,Animal Care Services Limited,A046488,26/05/2021,1410871,2245.05,Stray Dog Service,,
North West Leicestershire District Council,31UH,Legal & Democratic,Legal Services,LDLS,Trowers & Hamlins,A031241,26/05/2021,1410874,809.1,Legal & Professional Services,,
North West Leicestershire District Council,31UH,Communications,Corporate - Customer Services,CS,Quadient UK Ltd,A000079,26/05/2021,1410878,-2175.62,Equipment Operating Leases,,
North West Leicestershire District Council,31UH,Communications,Corporate - Customer Services,CS,Quadient UK Ltd,A000079,26/05/2021,1410978,1646.04,Equipment Operating Leases,,
North West Leicestershire District Council,31UH,Legal & Democratic,Legal Services,LDLS,Trowers & Hamlins,A031241,26/05/2021,1410981,8000,Legal & Professional Services,,
North West Leicestershire District Council,31UH,Finance,Financial Planning,FINPLA,Leicestershire Police Authority,A039806,26/05/2021,1410982,26681.96,Police Contribution,,
North West Leicestershire District Council,31UH,Finance,Financial Planning,FINPLA,The National Forest Company,A027538,26/05/2021,1410983,707.48,National Forest Payments,,
North West Leicestershire District Council,31UH,Finance,Financial Planning,FINPLA,Ashby De La Zouch Town Council,A000091,26/05/2021,1410984,24754.67,Recreation & Play Areas,,
North West Leicestershire District Council,31UH,Finance,Financial Planning,FINPLA,Leicestershire Police Authority,A039806,26/05/2021,1410985,66984.78,Police Contribution,,
North West Leicestershire District Council,31UH,Finance,Financial Planning,FINPLA,The National Forest Company,A027538,26/05/2021,1410986,6367.35,National Forest Payments,,
North West Leicestershire District Council,31UH,Finance,Financial Planning,FINPLA,Ashby De La Zouch Town Council,A000091,26/05/2021,1410987,335.33,Recreation & Play Areas,,
North West Leicestershire District Council,31UH,Finance,Exchequer Services,EXCH,Comensura Limited,A036958,26/05/2021,1410996,29442.9,Agency Staff,,
North West Leicestershire District Council,31UH,Finance,Exchequer Services,EXCH,Click Travel Ltd,A044308,26/05/2021,1410997,3504.58,Travel and Subsistence,,
North West Leicestershire District Council,31UH,Finance,Exchequer Services,EXCH,MHR International UK Ltd,A045150,26/05/2021,1411002,4356,Consultants Fees,,
North West Leicestershire District Council,31UH,Finance,Exchequer Services,EXCH,MHR International UK Ltd,A045150,26/05/2021,1411003,2867,Consultants Fees,,
North West Leicestershire District Council,31UH,Finance,Exchequer Services,EXCH,Digicert Inc,A042250,26/05/2021,1411004,295.67,Software Licences,,
North West Leicestershire District Council,31UH,Finance,Exchequer Services,EXCH,AQL Com,A042250,26/05/2021,1411004,550,Software Licences,,
North West Leicestershire District Council,31UH,Finance,Exchequer Services,EXCH,Tesco,A042250,26/05/2021,1411005,250.01,Food Deliveries,,
North West Leicestershire District Council,31UH,Finance,Exchequer Services,EXCH,Pro Clean,A042250,26/05/2021,1411005,288,Cleaning & Domestic Equipment,,
North West Leicestershire District Council,31UH,Finance,Exchequer Services,EXCH,DVLA Vehicle Tax,A042250,26/05/2021,1411005,3125,Vehicle Tax Licenses,,
North West Leicestershire District Council,31UH,Finance,Exchequer Services,EXCH,Hire Station One Heating,A042250,26/05/2021,1411005,766.28,Plumbing Heating,,
North West Leicestershire District Council,31UH,Communications,Corporate - Customer Services,CS,Quadient UK Ltd,A000079,26/05/2021,1411007,2514,Postages,,
North West Leicestershire District Council,31UH,Housing Repairs,HRA Housing Repairs & Maintenance,HRAHRM,Emperor Scaffolding Limited,A038405,05/05/2021,1410164,375,Hire Of Operational Equipment,,
North West Leicestershire District Council,31UH,Housing Repairs,HRA Housing Repairs & Maintenance,HRAHRM,Emperor Scaffolding Limited,A038405,05/05/2021,1410165,375,Hire Of Operational Equipment,,
North West Leicestershire District Council,31UH,Housing Repairs,HRA Housing Repairs & Maintenance,HRAHRM,Emperor Scaffolding Limited,A038405,05/05/2021,1410166,815,Hire Of Operational Equipment,,
North West Leicestershire District Council,31UH,Housing Repairs,HRA Housing Repairs & Maintenance,HRAHRM,Emperor Scaffolding Limited,A038405,05/05/2021,1410167,375,Hire Of Operational Equipment,,
North West Leicestershire District Council,31UH,Housing Repairs,HRA Housing Repairs & Maintenance,HRAHRM,Emperor Scaffolding Limited,A038405,05/05/2021,1410172,375,Hire Of Operational Equipment,,
North West Leicestershire District Council,31UH,Housing Repairs,HRA Housing Repairs & Maintenance,HRAHRM,Emperor Scaffolding Limited,A038405,05/05/2021,1410173,520,Hire Of Operational Equipment,,
North West Leicestershire District Council,31UH,Housing Repairs,HRA Housing Repairs & Maintenance,HRAHRM,Emperor Scaffolding Limited,A038405,05/05/2021,1410174,300,Hire Of Operational Equipment,,
North West Leicestershire District Council,31UH,Housing Repairs,HRA Housing Repairs & Maintenance,HRAHRM,Emperor Scaffolding Limited,A038405,05/05/2021,1410175,300,Hire Of Operational Equipment,,
North West Leicestershire District Council,31UH,Housing Repairs,HRA Housing Repairs & Maintenance,HRAHRM,Emperor Scaffolding Limited,A038405,05/05/2021,1410176,300,Hire Of Operational Equipment,,
North West Leicestershire District Council,31UH,Housing Repairs,HRA Housing Repairs & Maintenance,HRAHRM,Emperor Scaffolding Limited,A038405,05/05/2021,1410177,440,Hire Of Operational Equipment,,
North West Leicestershire District Council,31UH,Housing Repairs,HRA Housing Repairs & Maintenance,HRAHRM,Emperor Scaffolding Limited,A038405,05/05/2021,1410178,1200,Hire Of Operational Equipment,,
North West Leicestershire District Council,31UH,Housing Repairs,HRA Housing Repairs & Maintenance,HRAHRM,Emperor Scaffolding Limited,A038405,05/05/2021,1410179,260,Hire Of Operational Equipment,,
North West Leicestershire District Council,31UH,Housing Repairs,HRA Housing Repairs & Maintenance,HRAHRM,Emperor Scaffolding Limited,A038405,05/05/2021,1410180,920,Hire Of Operational Equipment,,
North West Leicestershire District Council,31UH,Housing Repairs,HRA Housing Repairs & Maintenance,HRAHRM,Emperor Scaffolding Limited,A038405,05/05/2021,1410181,760,Hire Of Operational Equipment,,
North West Leicestershire District Council,31UH,Housing Repairs,HRA Housing Repairs & Maintenance,HRAHRM,Emperor Scaffolding Limited,A038405,05/05/2021,1410182,1320,Hire Of Operational Equipment,,
North West Leicestershire District Council,31UH,Housing Repairs,HRA Housing Repairs & Maintenance,HRAHRM,Emperor Scaffolding Limited,A038405,05/05/2021,1410183,880,Hire Of Operational Equipment,,
North West Leicestershire District Council,31UH,Housing Repairs,HRA Housing Repairs & Maintenance,HRAHRM,Orbis Property Protection Ltd,A028149,05/05/2021,1410187,695,Void Property Clearance Services,,
North West Leicestershire District Council,31UH,Housing Repairs,HRA Housing Repairs & Maintenance,HRAHRM,Orbis Property Protection Ltd,A028149,05/05/2021,1410189,1270.16,Void Property Clearance Services,,
North West Leicestershire District Council,31UH,Housing Repairs,HRA Housing Repairs & Maintenance,HRAHRM,Orbis Property Protection Ltd,A028149,05/05/2021,1410190,1251.7,Void Property Clearance Services,,
North West Leicestershire District Council,31UH,Housing Repairs,HRA Housing Repairs & Maintenance,HRAHRM,Orbis Property Protection Ltd,A028149,05/05/2021,1410191,812.04,Void Property Clearance Services,,
North West Leicestershire District Council,31UH,Housing Repairs,HRA Housing Repairs & Maintenance,HRAHRM,Orbis Property Protection Ltd,A028149,05/05/2021,1410193,795.76,Void Property Clearance Services,,
North West Leicestershire District Council,31UH,Housing Repairs,HRA Housing Repairs & Maintenance,HRAHRM,Laker BMS Ltd,A031787,05/05/2021,1410195,9376.9,Contract Payments (Dws) Ext,,
North West Leicestershire District Council,31UH,Housing Repairs,HRA Housing Repairs & Maintenance,HRAHRM,Laker BMS Ltd,A031787,05/05/2021,1410198,250,Plumbing & Heating,,
North West Leicestershire District Council,31UH,Housing Repairs,HRA Housing Repairs & Maintenance,HRAHRM,Laker BMS Ltd,A031787,05/05/2021,1410200,289,Plumbing & Heating,,
North West Leicestershire District Council,31UH,Housing Repairs,HRA Housing Repairs & Maintenance,HRAHRM,Laker BMS Ltd,A031787,05/05/2021,1410201,1460.25,Plumbing & Heating,,
North West Leicestershire District Council,31UH,Housing Repairs,HRA Housing Repairs & Maintenance,HRAHRM,Laker BMS Ltd,A031787,05/05/2021,1410202,331.87,Plumbing & Heating,,
North West Leicestershire District Council,31UH,Housing Repairs,HRA Housing Repairs & Maintenance,HRAHRM,Timber-Link Fencing Ltd,A033297,19/05/2021,1410727,760,External Contractor Payments,,
North West Leicestershire District Council,31UH,Housing Repairs,HRA Housing Repairs & Maintenance,HRAHRM,Fire Proof Ltd,A039911,26/05/2021,1410949,664.79,Contract Payments (Dws) Ext,,
North West Leicestershire District Council,31UH,Housing Repairs,HRA Housing Repairs & Maintenance,HRAHRM,Laker BMS Ltd,A031787,26/05/2021,1410953,3777.06,Contract Payments (Dws) Ext,,
North West Leicestershire District Council,31UH,Housing Repairs,HRA Housing Repairs & Maintenance,HRAHRM,Emperor Scaffolding Limited,A038405,26/05/2021,1410956,2560,Hire Of Operational Equipment,,
North West Leicestershire District Council,31UH,Housing Repairs,HRA Housing Repairs & Maintenance,HRAHRM,Emperor Scaffolding Limited,A038405,26/05/2021,1410957,310,Hire Of Operational Equipment,,
North West Leicestershire District Council,31UH,Housing Repairs,HRA Housing Repairs & Maintenance,HRAHRM,Laker BMS Ltd,A031787,26/05/2021,1410960,2121.55,Contract Payments (Dws) Ext,,
North West Leicestershire District Council,31UH,Housing Repairs,HRA Housing Repairs & Maintenance,HRAHRM,Laker BMS Ltd,A031787,26/05/2021,1410961,5542.04,Contract Payments (Dws) Ext,,
North West Leicestershire District Council,31UH,Housing Repairs,HRA Housing Repairs & Maintenance,HRAHRM,Laker BMS Ltd,A031787,26/05/2021,1410962,5513.97,Plumbing & Heating,,
North West Leicestershire District Council,31UH,Housing Repairs,HRA Housing Repairs & Maintenance,HRAHRM,Premier Mobility UK Ltd,A045304,26/05/2021,1410966,1750.88,Contract Payments (Dws) Ext,,
North West Leicestershire District Council,31UH,Housing Repairs,HRA Housing Repairs & Maintenance,HRAHRM,Emperor Scaffolding Limited,A038405,26/05/2021,1410967,1760,Hire Of Operational Equipment,,
North West Leicestershire District Council,31UH,Housing Repairs,HRA Housing Repairs & Maintenance,HRAHRM,Emperor Scaffolding Limited,A038405,26/05/2021,1410968,4720,Hire Of Operational Equipment,,
North West Leicestershire District Council,31UH,Housing Repairs,HRA Housing Repairs & Maintenance,HRAHRM,Geze Uk Limited,A023130,26/05/2021,1410975,301,Lift maintenance,,
North West Leicestershire District Council,31UH,Housing Repairs,HRA Housing Repairs & Maintenance,HRAHRM,John Merison BMC Ltd,A001092,26/05/2021,1410976,780,General Repairs,,
